[Event "Early-Titled-Tuesday-Blitz-April-23-2024"]
[Site "Chess.com"]
[Date "2024.04.23"]
[Round "7"]
[White "grzechu96"]
[Black "NovozhilovSemen"]
[Result "1-0"]
[WhiteElo "2795"]
[BlackElo "2642"]
[TimeControl "180+1"]
[EndTime "9:20:53 PDT"]
[Termination "grzechu96 won by resignation"]

1. e4 {[%clk 0:03:00.9]} 1... c5 {[%clk 0:02:58.9]} 2. Nf3 {[%clk 0:03:01.4]}
2... Nc6 {[%clk 0:02:59]} 3. Bb5 {[%clk 0:03:01]} 3... g6 {[%clk 0:02:58.8]} 4.
Bxc6 {[%clk 0:03:01.3]} 4... bxc6 {[%clk 0:02:59.7]} 5. d4 {[%clk 0:03:01.3]}
5... Bg7 {[%clk 0:03:00.6]} 6. dxc5 {[%clk 0:03:01.3]} 6... Qa5+ {[%clk
0:02:59.1]} 7. Nbd2 {[%clk 0:03:01.3]} 7... Qxc5 {[%clk 0:02:58.8]} 8. O-O
{[%clk 0:03:01.1]} 8... d6 {[%clk 0:02:55.5]} 9. Re1 {[%clk 0:02:59.9]} 9... Nh6
{[%clk 0:02:47.8]} 10. e5 {[%clk 0:02:46.8]} 10... Bf5 {[%clk 0:02:36.7]} 11.
Nb3 {[%clk 0:02:40.9]} 11... Qxc2 {[%clk 0:02:11.1]} 12. Qxc2 {[%clk 0:02:40.6]}
12... Bxc2 {[%clk 0:02:12]} 13. exd6 {[%clk 0:02:08.9]} 13... e6 {[%clk
0:02:11.4]} 14. Nc5 {[%clk 0:01:16.6]} 14... O-O {[%clk 0:02:02.5]} 15. Bxh6
{[%clk 0:01:04.8]} 15... Bxh6 {[%clk 0:02:00.9]} 16. Nd4 {[%clk 0:01:05.4]}
16... Bf5 {[%clk 0:01:58.5]} 17. d7 {[%clk 0:01:05.7]} 17... Bd2 {[%clk
0:01:41.1]} 18. Nxc6 {[%clk 0:00:41]} 18... Bxe1 {[%clk 0:01:39.5]} 19. Rxe1
{[%clk 0:00:41.9]} 19... e5 {[%clk 0:01:35]} 20. Rxe5 {[%clk 0:00:40.3]} 20...
Kg7 {[%clk 0:01:31.2]} 21. h3 {[%clk 0:00:35.1]} 21... Bxd7 {[%clk 0:01:25.4]}
22. Nxd7 {[%clk 0:00:34.9]} 22... Rfc8 {[%clk 0:01:26.3]} 23. Nd4 {[%clk
0:00:02.9]} 23... Rc1+ {[%clk 0:01:24.3]} 24. Kh2 {[%clk 0:00:03.1]} 24... Rd8
{[%clk 0:01:09.5]} 25. Re7 {[%clk 0:00:03.3]} 25... Kh6 {[%clk 0:01:06.5]} 26.
Rxf7 {[%clk 0:00:03.1]} 26... Rd1 {[%clk 0:01:01.6]} 27. Nf8 {[%clk 0:00:03]}
27... R1xd4 {[%clk 0:00:54.3]} 28. f4 {[%clk 0:00:03.3]} 28... Rxf8 {[%clk
0:00:31.3]} 29. Rxf8 {[%clk 0:00:04.2]} 29... a5 {[%clk 0:00:26.2]} 30. Kg3
{[%clk 0:00:01.4]} 30... Rd3+ {[%clk 0:00:26.2]} 31. Kh2 {[%clk 0:00:01.9]}
31... a4 {[%clk 0:00:27]} 32. Ra8 {[%clk 0:00:02]} 32... Rd4 {[%clk 0:00:27.3]}
33. Kg3 {[%clk 0:00:02.6]} 33... Rb4 {[%clk 0:00:27.9]} 34. a3 {[%clk
0:00:02.5]} 34... Rb3+ {[%clk 0:00:28.5]} 35. Kh2 {[%clk 0:00:03]} 35... Rxb2
{[%clk 0:00:28.5]} 36. Rxa4 {[%clk 0:00:03.5]} 36... Ra2 {[%clk 0:00:29.4]} 37.
Ra7 {[%clk 0:00:03.2]} 37... Rf2 {[%clk 0:00:29.4]} 38. Kg3 {[%clk 0:00:03.5]}
38... Rb2 {[%clk 0:00:30.1]} 39. Kf3 {[%clk 0:00:03.8]} 39... Rb3+ {[%clk
0:00:30.6]} 40. Kg4 {[%clk 0:00:04.4]} 40... Rb2 {[%clk 0:00:30.5]} 41. g3
{[%clk 0:00:04.9]} 41... Rb5 {[%clk 0:00:31.2]} 42. Kh4 {[%clk 0:00:04.8]} 42...
Rf5 {[%clk 0:00:30.3]} 43. a4 {[%clk 0:00:04.6]} 43... Rc5 {[%clk 0:00:29]} 44.
g4 {[%clk 0:00:04.3]} 44... g5+ {[%clk 0:00:29.3]} 45. fxg5+ {[%clk 0:00:04.5]}
45... Kg6 {[%clk 0:00:29.8]} 46. a5 {[%clk 0:00:04.4]} 46... Rc3 {[%clk
0:00:29.2]} 47. Ra6+ {[%clk 0:00:04.5]} 47... Kg7 {[%clk 0:00:29.3]} 48. Rb6
{[%clk 0:00:05]} 48... Ra3 {[%clk 0:00:29.5]} 49. Rb5 {[%clk 0:00:04.2]} 49...
Kg6 {[%clk 0:00:29.3]} 50. Rb6+ {[%clk 0:00:03.8]} 50... Kg7 {[%clk 0:00:29.9]}
51. Rb7+ {[%clk 0:00:04]} 51... Kg6 {[%clk 0:00:29]} 52. Rb5 {[%clk 0:00:03.4]}
52... Kg7 {[%clk 0:00:29]} 53. Rc5 {[%clk 0:00:04.1]} 53... Ra2 {[%clk
0:00:28.5]} 54. Kh5 {[%clk 0:00:03.7]} 54... Ra3 {[%clk 0:00:28.8]} 55. h4
{[%clk 0:00:03.8]} 55... Rh3 {[%clk 0:00:28.6]} 56. a6 {[%clk 0:00:03.6]} 56...
Ra3 {[%clk 0:00:29.3]} 57. Rc7+ {[%clk 0:00:03.9]} 57... Kg8 {[%clk 0:00:29.5]}
58. a7 {[%clk 0:00:04.1]} 58... Ra6 {[%clk 0:00:22]} 59. Rc8+ {[%clk 0:00:03.7]}
59... Kf7 {[%clk 0:00:22.1]} 60. a8=Q {[%clk 0:00:03.9]} 1-0

[Event "Early-Titled-Tuesday-Blitz-April-23-2024"]
[Site "Chess.com"]
[Date "2024.04.23"]
[Round "7"]
[White "Agibileg"]
[Black "nekotyanof"]
[Result "1/2-1/2"]
[WhiteElo "2813"]
[BlackElo "2669"]
[TimeControl "180+1"]
[EndTime "9:20:55 PDT"]
[Termination "Game drawn - timeout vs insufficient material"]

1. d4 {[%clk 0:03:00]} 1... Nf6 {[%clk 0:03:00]} 2. c4 {[%clk 0:03:00.3]} 2...
g6 {[%clk 0:03:00.1]} 3. Nc3 {[%clk 0:03:00.6]} 3... d5 {[%clk 0:03:00.7]} 4.
cxd5 {[%clk 0:03:01.1]} 4... Nxd5 {[%clk 0:03:01.6]} 5. e4 {[%clk 0:03:01.3]}
5... Nxc3 {[%clk 0:03:02.1]} 6. bxc3 {[%clk 0:03:01.6]} 6... Bg7 {[%clk
0:03:03]} 7. Bc4 {[%clk 0:03:01.3]} 7... c5 {[%clk 0:03:03.6]} 8. Ne2 {[%clk
0:03:01.1]} 8... O-O {[%clk 0:03:03.7]} 9. O-O {[%clk 0:03:00.9]} 9... Nc6
{[%clk 0:03:04.4]} 10. Be3 {[%clk 0:03:01]} 10... Bd7 {[%clk 0:03:04.8]} 11. Rb1
{[%clk 0:02:55.9]} 11... Qc7 {[%clk 0:03:03.8]} 12. Qd2 {[%clk 0:02:32.4]} 12...
Rad8 {[%clk 0:03:02.8]} 13. Rfc1 {[%clk 0:02:18.1]} 13... Bc8 {[%clk 0:02:53.7]}
14. Bh6 {[%clk 0:02:09.3]} 14... e6 {[%clk 0:02:48.3]} 15. Bxg7 {[%clk
0:02:08.8]} 15... Kxg7 {[%clk 0:02:49.2]} 16. h4 {[%clk 0:02:05.3]} 16... Qe7
{[%clk 0:02:38.3]} 17. h5 {[%clk 0:02:02.8]} 17... Qh4 {[%clk 0:02:36.7]} 18.
Qe3 {[%clk 0:01:46.6]} 18... Qxh5 {[%clk 0:02:32.2]} 19. dxc5 {[%clk 0:01:41.4]}
19... Ne5 {[%clk 0:02:29.6]} 20. Bb5 {[%clk 0:01:26.8]} 20... a6 {[%clk
0:02:22.3]} 21. Nf4 {[%clk 0:01:25.5]} 21... Qh4 {[%clk 0:02:16.9]} 22. Be2
{[%clk 0:01:24.3]} 22... h5 {[%clk 0:02:12.1]} 23. Rd1 {[%clk 0:01:17.8]} 23...
Ng4 {[%clk 0:02:06.7]} 24. Bxg4 {[%clk 0:01:15.2]} 24... Qxg4 {[%clk 0:02:02.1]}
25. Rd6 {[%clk 0:01:13.8]} 25... e5 {[%clk 0:01:57.9]} 26. Nd5 {[%clk
0:01:08.3]} 26... Be6 {[%clk 0:01:56.3]} 27. Nc7 {[%clk 0:00:55]} 27... Rxd6
{[%clk 0:01:53.6]} 28. cxd6 {[%clk 0:00:54.4]} 28... Rd8 {[%clk 0:01:54.2]} 29.
f3 {[%clk 0:00:47.4]} 29... Qf4 {[%clk 0:01:31.9]} 30. Qxf4 {[%clk 0:00:44.8]}
30... exf4 {[%clk 0:01:32.8]} 31. Nxe6+ {[%clk 0:00:37.7]} 31... fxe6 {[%clk
0:01:33.2]} 32. Rxb7+ {[%clk 0:00:35.6]} 32... Kf6 {[%clk 0:01:33.8]} 33. Rb6
{[%clk 0:00:34.9]} 33... Rc8 {[%clk 0:01:22.2]} 34. Rxa6 {[%clk 0:00:19.4]}
34... Rxc3 {[%clk 0:01:22.1]} 35. Ra8 {[%clk 0:00:17.9]} 35... Rd3 {[%clk
0:01:21]} 36. Rd8 {[%clk 0:00:11.9]} 36... Rd2 {[%clk 0:00:36.2]} 37. a4 {[%clk
0:00:11.6]} 37... e5 {[%clk 0:00:31.3]} 38. a5 {[%clk 0:00:11.4]} 38... Ke6
{[%clk 0:00:31]} 39. Re8+ {[%clk 0:00:11.2]} 39... Kd7 {[%clk 0:00:30.4]} 40.
Rxe5 {[%clk 0:00:11.1]} 40... Kxd6 {[%clk 0:00:28.1]} 41. Rd5+ {[%clk
0:00:04.6]} 41... Rxd5 {[%clk 0:00:25]} 42. exd5 {[%clk 0:00:05.1]} 42... Kxd5
{[%clk 0:00:25.9]} 43. Kf2 {[%clk 0:00:03.2]} 43... g5 {[%clk 0:00:18.7]} 44.
Ke2 {[%clk 0:00:01.7]} 44... g4 {[%clk 0:00:17]} 45. fxg4 {[%clk 0:00:02]} 45...
hxg4 {[%clk 0:00:17.4]} 46. Kd3 {[%clk 0:00:01.2]} 46... Kc6 {[%clk 0:00:09.2]}
47. a6 {[%clk 0:00:00.9]} 47... Kb6 {[%clk 0:00:09.5]} 48. Ke4 {[%clk
0:00:01.2]} 48... f3 {[%clk 0:00:09.6]} 49. gxf3 {[%clk 0:00:02.1]} 49... gxf3
{[%clk 0:00:10.3]} 50. Kxf3 {[%clk 0:00:03]} 50... Ka7 {[%clk 0:00:10.9]}
1/2-1/2

[Event "Early-Titled-Tuesday-Blitz-April-23-2024"]
[Site "Chess.com"]
[Date "2024.04.23"]
[Round "7"]
[White "ChessSwole"]
[Black "Barath1308"]
[Result "1-0"]
[WhiteElo "2713"]
[BlackElo "2540"]
[TimeControl "180+1"]
[EndTime "9:20:56 PDT"]
[Termination "ChessSwole won by resignation"]

1. d4 {[%clk 0:03:00.9]} 1... Nf6 {[%clk 0:02:59.7]} 2. c4 {[%clk 0:02:59.9]}
2... g6 {[%clk 0:03:00.2]} 3. Nc3 {[%clk 0:02:59.9]} 3... Bg7 {[%clk 0:03:00.8]}
4. e4 {[%clk 0:02:59.3]} 4... d6 {[%clk 0:03:01.4]} 5. h3 {[%clk 0:02:59.3]}
5... O-O {[%clk 0:03:00.9]} 6. Be3 {[%clk 0:02:57.4]} 6... Na6 {[%clk
0:02:53.8]} 7. Nf3 {[%clk 0:02:51]} 7... Re8 {[%clk 0:02:51.5]} 8. Be2 {[%clk
0:02:48.4]} 8... e5 {[%clk 0:02:49.9]} 9. d5 {[%clk 0:02:44.6]} 9... Nc5 {[%clk
0:02:47.6]} 10. Nd2 {[%clk 0:02:44.8]} 10... a5 {[%clk 0:02:46.2]} 11. g4 {[%clk
0:02:43.8]} 11... Nfd7 {[%clk 0:02:38.4]} 12. h4 {[%clk 0:02:41.9]} 12... Bf6
{[%clk 0:02:37.2]} 13. g5 {[%clk 0:02:41.1]} 13... Bg7 {[%clk 0:02:35.4]} 14.
Qc2 {[%clk 0:02:33.6]} 14... Rf8 {[%clk 0:02:05.1]} 15. h5 {[%clk 0:02:32.8]}
15... c6 {[%clk 0:01:56.6]} 16. O-O-O {[%clk 0:02:23.8]} 16... cxd5 {[%clk
0:01:56]} 17. exd5 {[%clk 0:02:01.1]} 17... Nb6 {[%clk 0:01:52.7]} 18. Bxc5
{[%clk 0:01:53]} 18... dxc5 {[%clk 0:01:52.1]} 19. Nce4 {[%clk 0:01:44.9]} 19...
Bf5 {[%clk 0:01:49.2]} 20. Bd3 {[%clk 0:01:41.8]} 20... Nc8 {[%clk 0:01:38.4]}
21. Rdg1 {[%clk 0:01:31.5]} 21... b6 {[%clk 0:01:34.4]} 22. Nf1 {[%clk 0:01:22]}
22... Bxe4 {[%clk 0:01:32.2]} 23. Bxe4 {[%clk 0:01:21.6]} 23... Nd6 {[%clk
0:01:32.8]} 24. Ne3 {[%clk 0:01:17.4]} 24... Qe7 {[%clk 0:01:20.4]} 25. f3
{[%clk 0:01:16.5]} 25... a4 {[%clk 0:01:17.2]} 26. Qh2 {[%clk 0:01:12.1]} 26...
Rfc8 {[%clk 0:01:09]} 27. a3 {[%clk 0:01:05.8]} 27... b5 {[%clk 0:01:07.9]} 28.
cxb5 {[%clk 0:01:05.1]} 28... c4 {[%clk 0:01:06.4]} 29. Nd1 {[%clk 0:00:39.8]}
29... Rab8 {[%clk 0:01:01.9]} 30. Nc3 {[%clk 0:00:29.6]} 30... Nxb5 {[%clk
0:01:01]} 31. Nxb5 {[%clk 0:00:29.8]} 31... Rxb5 {[%clk 0:01:00.9]} 32. hxg6
{[%clk 0:00:22.5]} 32... hxg6 {[%clk 0:00:59.5]} 33. Rg2 {[%clk 0:00:12.6]}
33... c3 {[%clk 0:00:48.9]} 34. Rc2 {[%clk 0:00:12.5]} 34... cxb2+ {[%clk
0:00:47.3]} 35. Kb1 {[%clk 0:00:12.7]} 35... Rxc2 {[%clk 0:00:43.9]} 36. Qxc2
{[%clk 0:00:12.9]} 36... Rb8 {[%clk 0:00:40.7]} 37. Qc3 {[%clk 0:00:10.9]} 37...
Qxg5 {[%clk 0:00:37.4]} 38. d6 {[%clk 0:00:10.7]} 38... Qd8 {[%clk 0:00:31]} 39.
Rd1 {[%clk 0:00:10.3]} 39... Qd7 {[%clk 0:00:20]} 40. Bc6 {[%clk 0:00:08.4]}
40... Qf5+ {[%clk 0:00:20]} 41. Be4 {[%clk 0:00:09.1]} 41... Qd7 {[%clk
0:00:19.5]} 42. Qc4 {[%clk 0:00:08.6]} 42... Rb6 {[%clk 0:00:14.9]} 43. Bxg6
{[%clk 0:00:07.4]} 43... Rxd6 {[%clk 0:00:14.9]} 44. Qxf7+ {[%clk 0:00:05.5]}
44... Qxf7 {[%clk 0:00:14.5]} 45. Bxf7+ {[%clk 0:00:06.4]} 45... Kxf7 {[%clk
0:00:15.2]} 46. Rxd6 {[%clk 0:00:07.1]} 46... Ke7 {[%clk 0:00:10.6]} 47. Ra6
{[%clk 0:00:07.2]} 47... Kd7 {[%clk 0:00:08.2]} 48. Rxa4 {[%clk 0:00:07.2]}
48... Kd6 {[%clk 0:00:08.5]} 49. Re4 {[%clk 0:00:07.9]} 49... Kd5 {[%clk
0:00:08.7]} 50. Kxb2 {[%clk 0:00:08.6]} 50... Bf8 {[%clk 0:00:09.1]} 51. a4
{[%clk 0:00:08.8]} 51... Bc5 {[%clk 0:00:09.2]} 52. Kb3 {[%clk 0:00:09.2]} 52...
Bd4 {[%clk 0:00:09.4]} 53. a5 {[%clk 0:00:08.6]} 53... Kc6 {[%clk 0:00:09.1]}
54. Kc4 {[%clk 0:00:08.7]} 54... Kb7 {[%clk 0:00:07.3]} 55. f4 {[%clk 0:00:08]}
55... Ka6 {[%clk 0:00:07.2]} 56. Rxd4 {[%clk 0:00:06.7]} 56... exd4 {[%clk
0:00:06.9]} 57. f5 {[%clk 0:00:07.2]} 57... Kxa5 {[%clk 0:00:07.8]} 58. f6
{[%clk 0:00:07.5]} 1-0

[Event "Early-Titled-Tuesday-Blitz-April-23-2024"]
[Site "Chess.com"]
[Date "2024.04.23"]
[Round "7"]
[White "wonderfultime"]
[Black "kuli4ik"]
[Result "1-0"]
[WhiteElo "3070"]
[BlackElo "2879"]
[TimeControl "180+1"]
[EndTime "9:20:57 PDT"]
[Termination "wonderfultime won on time"]

1. d4 {[%clk 0:02:59.6]} 1... g6 {[%clk 0:02:59.9]} 2. e4 {[%clk 0:02:59.6]}
2... Bg7 {[%clk 0:03:00.4]} 3. Bc4 {[%clk 0:02:59.9]} 3... c6 {[%clk 0:02:56.2]}
4. Bb3 {[%clk 0:02:59.7]} 4... d5 {[%clk 0:02:55.5]} 5. exd5 {[%clk 0:02:56.5]}
5... cxd5 {[%clk 0:02:55]} 6. c3 {[%clk 0:02:56.4]} 6... Nc6 {[%clk 0:02:54.4]}
7. Bf4 {[%clk 0:02:56.7]} 7... Nf6 {[%clk 0:02:51.7]} 8. h3 {[%clk 0:02:56.8]}
8... O-O {[%clk 0:02:49.7]} 9. Nf3 {[%clk 0:02:57.2]} 9... Bf5 {[%clk
0:02:44.4]} 10. O-O {[%clk 0:02:56.9]} 10... Na5 {[%clk 0:02:44.5]} 11. Nbd2
{[%clk 0:02:56.9]} 11... Nxb3 {[%clk 0:02:40.5]} 12. axb3 {[%clk 0:02:57.8]}
12... Bd7 {[%clk 0:02:27.3]} 13. Re1 {[%clk 0:02:54.8]} 13... Re8 {[%clk
0:02:27.2]} 14. Ne5 {[%clk 0:02:52.6]} 14... Bb5 {[%clk 0:02:19.9]} 15. Qf3
{[%clk 0:02:50]} 15... Bc6 {[%clk 0:02:08.2]} 16. Re3 {[%clk 0:02:46.8]} 16...
a5 {[%clk 0:01:51.5]} 17. Rae1 {[%clk 0:02:44.2]} 17... a4 {[%clk 0:01:47.4]}
18. bxa4 {[%clk 0:02:45.1]} 18... Rxa4 {[%clk 0:01:46.4]} 19. Bg5 {[%clk
0:02:45.3]} 19... Qd6 {[%clk 0:01:28]} 20. Nb3 {[%clk 0:02:22.5]} 20... Ra2
{[%clk 0:01:22.9]} 21. Qe2 {[%clk 0:01:38.7]} 21... Ne4 {[%clk 0:01:13.4]} 22.
Bf4 {[%clk 0:01:39.1]} 22... Ba4 {[%clk 0:01:01.9]} 23. Nc1 {[%clk 0:01:32.7]}
23... Ra1 {[%clk 0:01:01.3]} 24. f3 {[%clk 0:01:30.5]} 24... f6 {[%clk
0:00:34.2]} 25. Ned3 {[%clk 0:00:52.3]} 25... e5 {[%clk 0:00:30.8]} 26. Bh2
{[%clk 0:00:53]} 26... Bh6 {[%clk 0:00:19.9]} 27. fxe4 {[%clk 0:00:47.8]} 27...
Bxe3+ {[%clk 0:00:18.8]} 28. Qxe3 {[%clk 0:00:48.7]} 28... dxe4 {[%clk
0:00:16.6]} 29. Qxe4 {[%clk 0:00:47]} 29... Bc6 {[%clk 0:00:16.3]} 30. Qe2
{[%clk 0:00:45.2]} 30... Bb5 {[%clk 0:00:16.4]} 31. Qf2 {[%clk 0:00:29.3]} 31...
Qd8 {[%clk 0:00:10.9]} 32. Nb3 {[%clk 0:00:24.2]} 32... Rxe1+ {[%clk 0:00:10.1]}
33. Nxe1 {[%clk 0:00:25.1]} 33... exd4 {[%clk 0:00:09.2]} 34. Nxd4 {[%clk
0:00:26]} 34... Bd7 {[%clk 0:00:08.3]} 35. Bg3 {[%clk 0:00:24.3]} 35... Kg7
{[%clk 0:00:08.7]} 36. Nd3 {[%clk 0:00:24.5]} 36... Qe7 {[%clk 0:00:06.8]} 37.
Nf4 {[%clk 0:00:20.5]} 37... Qe3 {[%clk 0:00:05.7]} 38. Nd5 {[%clk 0:00:14.5]}
38... Qxf2+ {[%clk 0:00:05.5]} 39. Kxf2 {[%clk 0:00:14.8]} 39... g5 {[%clk
0:00:03]} 40. Bd6 {[%clk 0:00:14.3]} 40... Kf7 {[%clk 0:00:03.1]} 41. Bb4 {[%clk
0:00:08.8]} 41... Be6 {[%clk 0:00:03.4]} 42. Ne3 {[%clk 0:00:09]} 42... Ba2
{[%clk 0:00:02.5]} 43. c4 {[%clk 0:00:09.1]} 43... h5 {[%clk 0:00:03]} 44. Bc3
{[%clk 0:00:09.5]} 44... Re4 {[%clk 0:00:03.2]} 45. Ndf5 {[%clk 0:00:07.8]}
45... Kg6 {[%clk 0:00:02.6]} 46. Nd6 {[%clk 0:00:06.5]} 46... Re6 {[%clk
0:00:02.7]} 47. c5 {[%clk 0:00:05]} 47... Bb1 {[%clk 0:00:03.2]} 48. b4 {[%clk
0:00:05]} 48... Re7 {[%clk 0:00:03.4]} 49. Nd5 {[%clk 0:00:05.2]} 49... Rd7
{[%clk 0:00:03.7]} 50. Nxf6 {[%clk 0:00:05.4]} 50... Re7 {[%clk 0:00:02.5]} 51.
g4 {[%clk 0:00:05.2]} 51... h4 {[%clk 0:00:01.9]} 52. Nd5 {[%clk 0:00:04.6]}
52... Rd7 {[%clk 0:00:01.5]} 53. Ne3 {[%clk 0:00:04.6]} 53... Re7 {[%clk
0:00:01.5]} 54. Nec4 {[%clk 0:00:04.8]} 1-0

[Event "Early-Titled-Tuesday-Blitz-April-23-2024"]
[Site "Chess.com"]
[Date "2024.04.23"]
[Round "7"]
[White "Journey_to_GrandMaster_YT"]
[Black "JJDAREK"]
[Result "1-0"]
[WhiteElo "2554"]
[BlackElo "2349"]
[TimeControl "180+1"]
[EndTime "9:20:57 PDT"]
[Termination "Journey_to_GrandMaster_YT won on time"]

1. d4 {[%clk 0:03:00]} 1... d6 {[%clk 0:02:59]} 2. Nf3 {[%clk 0:03:00.9]} 2...
g6 {[%clk 0:02:58.8]} 3. g3 {[%clk 0:03:01.3]} 3... Bg7 {[%clk 0:02:58.6]} 4.
Bg2 {[%clk 0:03:02.2]} 4... e5 {[%clk 0:02:55.1]} 5. dxe5 {[%clk 0:03:02.2]}
5... dxe5 {[%clk 0:02:56]} 6. Qxd8+ {[%clk 0:03:02.3]} 6... Kxd8 {[%clk
0:02:56.9]} 7. Nc3 {[%clk 0:03:00.8]} 7... c6 {[%clk 0:02:55.5]} 8. Bg5+ {[%clk
0:02:52.5]} 8... f6 {[%clk 0:02:54.8]} 9. O-O-O+ {[%clk 0:02:52.8]} 9... Kc7
{[%clk 0:02:45.9]} 10. Be3 {[%clk 0:02:52.7]} 10... Be6 {[%clk 0:02:33.5]} 11.
Ne4 {[%clk 0:02:51.4]} 11... Nd7 {[%clk 0:02:33.5]} 12. Nc5 {[%clk 0:02:38.7]}
12... Nxc5 {[%clk 0:02:32.2]} 13. Bxc5 {[%clk 0:02:39.6]} 13... Bf8 {[%clk
0:02:30.5]} 14. Bxf8 {[%clk 0:02:25.7]} 14... Rxf8 {[%clk 0:02:31.4]} 15. Nd2
{[%clk 0:02:25.7]} 15... Nh6 {[%clk 0:02:26.4]} 16. Ne4 {[%clk 0:02:23.7]} 16...
Bd5 {[%clk 0:02:12.7]} 17. f3 {[%clk 0:02:05.7]} 17... Bxe4 {[%clk 0:02:10.9]}
18. fxe4 {[%clk 0:02:05.7]} 18... Rd8 {[%clk 0:01:56.9]} 19. Bh3 {[%clk
0:02:02.9]} 19... Rxd1+ {[%clk 0:01:52.4]} 20. Rxd1 {[%clk 0:02:02.2]} 20... Rd8
{[%clk 0:01:52.9]} 21. Rd3 {[%clk 0:01:45.9]} 21... Rxd3 {[%clk 0:01:48.7]} 22.
exd3 {[%clk 0:01:45.5]} 22... Kd6 {[%clk 0:01:47.8]} 23. Kd2 {[%clk 0:01:45.3]}
23... Nf7 {[%clk 0:01:45.7]} 24. Ke3 {[%clk 0:01:44.4]} 24... Ng5 {[%clk
0:01:43.6]} 25. Bc8 {[%clk 0:01:40.5]} 25... Kc7 {[%clk 0:01:41.9]} 26. Bg4
{[%clk 0:01:40.6]} 26... h5 {[%clk 0:01:38.1]} 27. Be2 {[%clk 0:01:39.4]} 27...
Kd6 {[%clk 0:01:30.5]} 28. c3 {[%clk 0:01:34.9]} 28... c5 {[%clk 0:01:28.8]} 29.
Bd1 {[%clk 0:01:34.4]} 29... Ne6 {[%clk 0:01:02.6]} 30. h4 {[%clk 0:01:31.9]}
30... b6 {[%clk 0:00:54.5]} 31. Ba4 {[%clk 0:00:59.3]} 31... Ke7 {[%clk
0:00:51.5]} 32. Bb3 {[%clk 0:00:48.5]} 32... Kd6 {[%clk 0:00:51.6]} 33. Bd5
{[%clk 0:00:43.9]} 33... Nf8 {[%clk 0:00:47]} 34. Bf7 {[%clk 0:00:32.3]} 34...
Ke7 {[%clk 0:00:46.5]} 35. Bb3 {[%clk 0:00:32.6]} 35... Kd6 {[%clk 0:00:46.7]}
36. d4 {[%clk 0:00:31.6]} 36... cxd4+ {[%clk 0:00:45.1]} 37. cxd4 {[%clk
0:00:32.5]} 37... exd4+ {[%clk 0:00:41.9]} 38. Kxd4 {[%clk 0:00:32.6]} 38...
Ne6+ {[%clk 0:00:42]} 39. Ke3 {[%clk 0:00:23.6]} 39... Ke5 {[%clk 0:00:38.9]}
40. Bc2 {[%clk 0:00:18.5]} 40... a5 {[%clk 0:00:36.1]} 41. a3 {[%clk 0:00:18.4]}
41... Nc5 {[%clk 0:00:34.3]} 42. Bb1 {[%clk 0:00:14.1]} 42... g5 {[%clk
0:00:31.7]} 43. Bc2 {[%clk 0:00:13.6]} 43... gxh4 {[%clk 0:00:30.6]} 44. gxh4
{[%clk 0:00:14.5]} 44... a4 {[%clk 0:00:28.3]} 45. Bd1 {[%clk 0:00:14.5]} 45...
Nxe4 {[%clk 0:00:24.8]} 46. Bxh5 {[%clk 0:00:15]} 46... f5 {[%clk 0:00:22.8]}
47. Be8 {[%clk 0:00:13.4]} 47... f4+ {[%clk 0:00:23.7]} 48. Kf3 {[%clk 0:00:13]}
48... Nd2+ {[%clk 0:00:20.6]} 49. Kg4 {[%clk 0:00:11.7]} 49... f3 {[%clk
0:00:20.8]} 50. Bxa4 {[%clk 0:00:09.7]} 50... f2 {[%clk 0:00:16]} 51. Bb5 {[%clk
0:00:10.1]} 51... Ke4 {[%clk 0:00:16.2]} 52. h5 {[%clk 0:00:08.1]} 52... Kd4
{[%clk 0:00:11.8]} 53. Kg3 {[%clk 0:00:07.3]} 53... f1=Q {[%clk 0:00:10.1]} 54.
Bxf1 {[%clk 0:00:07.6]} 54... Nxf1+ {[%clk 0:00:10.6]} 55. Kf4 {[%clk
0:00:08.2]} 55... Ne3 {[%clk 0:00:08.5]} 56. h6 {[%clk 0:00:08.6]} 56... Nd5+
{[%clk 0:00:08.6]} 57. Kg5 {[%clk 0:00:09.2]} 57... Ke5 {[%clk 0:00:07.3]} 58.
h7 {[%clk 0:00:09.5]} 1-0